fUSD/lending_fUSD_20241118
["ID","MTS","AMOUNT","RATE_DAILY","PERIOD"]
[342522930,1731956875606,-167.34494029,0.000384,33]
[342522931,1731956875634,-352.16910627,0.000384,33]
[342522932,1731956875661,-157.111609,0.00038498,120]
[342522933,1731956875689,-8901.25655245,0.000385,30]
[342522934,1731956875718,-1827.0644571,0.000385,120]
[342522935,1731956875749,-232.61,0.000385,120]
[342522936,1731956875777,-232.61,0.000385,120]
[342522937,1731956875806,-232.61,0.000385,120]
[342522938,1731956875836,-8465.84895473,0.00038534,120]
[342522939,1731956875866,-1000.0,0.0003855,30]
[342522940,1731956875895,-187.111817,0.00038598,120]
[342522941,1731956875923,-656.55917516,0.00038646,40]
[342522942,1731956875953,-157.111611,0.00038698,120]
[342522943,1731956875984,-6000.0,0.00038765,30]
[342522944,1731956876017,-187.111817,0.00038798,120]
[342522945,1731956876048,-191.70537,0.000388,120]
[342522946,1731956876078,-1080841.65389904,0.000388,120]
[342522947,1731956876107,-8020.1012999,0.0003888,90]
[342522948,1731956876138,-450.03761651,0.0003888,120]
[342522949,1731956876168,-157.111611,0.00038898,120]
[342522950,1731956876198,-10587.7863097,0.000389,120]
[342522951,1731956876234,-50000.0,0.00039,39]
[342522952,1731956876264,-421.32593087,0.00039,120]
[342522953,1731956876294,-900.0,0.00039,120]
[342522954,1731956876324,-1800.0,0.00039,40]
[342522955,1731956876352,-10000.0,0.00039,40]
[342522956,1731956876382,-1304.19909386,0.00039,120]
[342522957,1731956876410,-1001.0,0.00039,60]
[342522958,1731956876438,-5412.42580781,0.00039,120]
[342522959,1731956876471,-216.08,0.00039,30]
[342522960,1731956876503,-168.44616746,0.00039,120]
[342522961,1731956876531,-817.0,0.00039,120]
[342522962,1731956876560,-187.111817,0.00039198,120]
[342522963,1731956876589,-157.111611,0.00039298,120]
[342522964,1731956876619,-264.27,0.00039323,30]
[342522965,1731956876652,-187.111817,0.00039398,120]
[342522966,1731956876681,-575.98962151,0.000394,30]
[342522967,1731956876711,-400.0,0.000394,120]
[342522968,1731956876743,-260.0,0.000394,120]
[342522969,1731956876773,-260.0,0.000394,120]
[342522970,1731956876803,-475000.0,0.000394,120]
[342522971,1731956876834,-9114.0,0.00039483,117]
[342522972,1731956876864,-157.111611,0.00039498,120]
[342522973,1731956876893,-3000.0,0.000395,120]
[342522974,1731956876922,-151.0,0.00039589,120]
[342522975,1731956876952,-187.111817,0.00039598,120]
[342522976,1731956876981,-40000.0,0.000396,120]
[342522977,1731956877015,-157.111611,0.00039698,120]
[342522978,1731956877045,-33496.61841957,0.000397,120]
[342522979,1731956877073,-39295.44,0.00039787,120]
[342522980,1731956877105,-187.111817,0.00039798,120]
[342522981,1731956877135,-4765.69454263,0.000398,120]
[342522982,1731956877166,-722857.53268964,0.000398,120]
[342522983,1731956883404,-3000000.0,0.000398,120]
[342522984,1731956887533,-277416.71428087,0.000398,120]
[342522985,1731956887567,-800.0,0.00039808,120]
[342522986,1731956887598,-157.111611,0.00039898,120]
[342522987,1731956887629,-705.53,0.00039914,120]
[342522988,1731956887658,-1000.0,0.00039945,120]
[342522989,1731956887688,-495.09741357,0.0003997,120]
[342522990,1731956887718,-1324.24776199,0.0003999,120]
[342522991,1731956887749,-16925.6340173,0.00039999,120]
[342522992,1731956887781,-50000.0,0.0004,30]
[342522993,1731956887815,-50000.0,0.0004,40]
[342522994,1731956887846,-500.0,0.0004,120]
[342522995,1731956887874,-1477.32581525,0.0004,30]
[342522996,1731956887902,-1800.00007606,0.0004,41]
[342522997,1731956887931,-1000.0,0.0004,120]
[342522998,1731956887961,-2199.0,0.0004,120]
[342522999,1731956887990,-2883.0,0.0004,120]
[342523000,1731956888026,-2024.0,0.0004,120]
[342523001,1731956888056,-477.12749073,0.0004,30]
[342523002,1731956888086,-314.22923493,0.0004,30]
[342523003,1731956888114,-1502.86603116,0.0004,30]
[342523004,1731956888143,-191.58539101,0.0004,30]
[342523005,1731956888172,-1180.3919535,0.0004,120]
[342523006,1731956888201,-473.65901373,0.0004,120]
[342523007,1731956888565,-1337.81645343,0.0004,120]
[342523008,1731956888596,-200.00000006,0.0004,120]
[342523009,1731956888625,-200823.65500127,0.0004,60]
[342523010,1731956888653,-1000.0,0.0004,120]
[342523011,1731956888683,-1000.0,0.0004,120]
[342523012,1731956888713,-1000.0,0.0004,120]
[342523013,1731956888747,-1006.07165143,0.0004,120]
[342523014,1731956888775,-50000.0,0.0004,45]
[342523015,1731956888804,-5000.0,0.0004,120]
[342523016,1731956888833,-5000.0,0.0004,120]
[342523017,1731956888862,-167.32662406,0.0004,120]
[342523018,1731956888892,-9406.92654377,0.0004,120]
[342523019,1731956888922,-381.72832153,0.0004,30]
[342523020,1731956888951,-3000.0,0.0004,120]
[342523021,1731956888981,-500.0,0.0004,120]
[342523022,1731956889019,-49549.453135,0.0004,120]
[342523023,1731956889051,-6300.4999652,0.0004,60]
[342523024,1731956889082,-136373.29,0.0004,120]
[342523025,1731956889112,-2004111.30527302,0.0004,30]
[342523026,1731956889143,-500.0,0.0004,120]
[342523027,1731956889174,-156.81074483,0.0004,120]
[342523028,1731956889204,-302.74791454,0.0004,60]
[342523029,1731956889235,-250.0,0.0004,30]
[342523030,1731956889273,-519.70703276,0.0004,120]
[342523031,1731956889304,-171.0,0.0004,30]
[342523032,1731956889332,-35000.0,0.0004,30]
[342523033,1731956889362,-1000.0,0.0004,120]
[342523034,1731956889392,-200.0,0.0004,120]
[342523035,1731956889422,-14312.26947077,0.0004,30]
[342523036,1731956889460,-480.06366862,0.0004,30]
[342523037,1731956889489,-1394.77351441,0.0004,30]
[342523038,1731956889526,-607.95779018,0.0004,30]
[342523039,1731956889556,-1113.0,0.0004,120]
[342523040,1731956889589,-8025.72424042,0.0004,30]
[342523041,1731956889616,-235.71593741,0.0004,120]
[342523042,1731956889646,-44724.63662619,0.0004,120]
[342523043,1731956893609,-205275.36337381,0.0004,120]
[342523044,1731956893638,-320.0,0.0004,60]
[342523045,1731956893666,-2000.0,0.0004,120]
[342523046,1731956893693,-413.67,0.0004,120]
[342523047,1731956893722,-1676.0,0.0004,120]
[342523048,1731956893753,-777785.75720671,0.0004,30]
[342523049,1731956893782,-2783.81951754,0.0004,120]
[342523050,1731956893810,-342.0,0.0004,120]
[342523051,1731956893839,-9195.40269595,0.0004,30]
[342523052,1731956893867,-11235.68547062,0.0004,30]
[342523053,1731956893896,-34292.29,0.0004,30]
[342523054,1731956893924,-978.14580114,0.0004,30]
[342523055,1731956893953,-2882.0484033,0.0004,120]
[342523056,1731956893982,-11869.56356911,0.0004,120]
[342523057,1731956894016,-963.34,0.0004,120]
[342523058,1731956894047,-353.51,0.0004,120]
[342523059,1731956894076,-993.02,0.0004,120]
[342523060,1731956894109,-329.8,0.0004,120]
[342523061,1731956894139,-12500.0,0.0004,120]
[342523062,1731956894168,-12500.0,0.0004,120]
[342523063,1731956894199,-12500.0,0.0004,120]
[342523064,1731956894229,-12500.0,0.0004,120]
[342523065,1731956894260,-12500.0,0.0004,120]
[342523066,1731956894291,-351.92,0.0004,120]
[342523067,1731956894321,-12500.0,0.0004,120]
[342523068,1731956894351,-12500.0,0.0004,120]
[342523069,1731956894383,-1362.2,0.0004,120]
[342523070,1731956894414,-12500.0,0.0004,120]
[342523071,1731956894443,-12500.0,0.0004,120]
[342523072,1731956894474,-12500.0,0.0004,120]
[342523073,1731956894505,-12500.0,0.0004,120]
[342523074,1731956894535,-6593.82,0.0004,120]
[342523075,1731956894564,-6545.74,0.0004,120]
[342523076,1731956894593,-7537.0,0.0004,120]
[342523077,1731956894622,-151.0,0.0004,30]
[342523078,1731956894649,-250000.0,0.000401,120]
[342523079,1731956894676,-1000.0,0.0004012,42]
[342523080,1731956894704,-33867.01771044,0.00040136,30]
[342523081,1731956894732,-187.111817,0.00040198,120]
[342523082,1731956894761,-2656.0800085,0.000402,120]
[342523083,1731956894789,-191.70537,0.000402,120]
[342523084,1731956894820,-250000.0,0.000402,120]
[342523085,1731956894849,-1658.47,0.000402,30]
[342523086,1731956894878,-157.111806,0.00040298,120]
[342523087,1731956894907,-466.91424356,0.000403,120]
[342523088,1731956894937,-250000.0,0.000403,120]
[342523089,1731956894967,-12500.0,0.00040375,120]
[342523090,1731956895000,-12500.0,0.00040375,120]
[342523091,1731956895032,-12500.0,0.00040375,120]
[342523092,1731956895062,-12500.0,0.00040375,120]
[342523093,1731956895092,-12500.0,0.00040375,120]
[342523094,1731956895120,-12500.0,0.00040375,120]
[342523095,1731956895149,-12500.0,0.00040375,120]
[342523096,1731956895179,-12500.0,0.00040375,120]
[342523097,1731956895207,-12500.0,0.00040375,120]
[342523098,1731956895235,-161.111817,0.00040398,120]
[342523099,1731956895268,-213.0,0.000404,120]
[342523100,1731956895298,-83246.02628873,0.000404,120]
[342523101,1731956895328,-86000.0,0.000404,120]
[342523102,1731956895560,-157.111712,0.00040498,120]
[342523103,1731956895664,-2601.316878,0.000405,120]
[342523104,1731956895693,-10000.0,0.000405,30]
[342523105,1731956895723,-431.17460424,0.000405,120]
[342523106,1731956895754,-179301.94522818,0.000405,30]
[342523107,1731956895782,-335.95715462,0.000405,30]
[342523108,1731956895812,-157.111712,0.00040598,120]
[342523109,1731956895841,-157.111712,0.00040698,120]
[342523110,1731956895870,-1505.0,0.00040746,60]
[342523111,1731956895899,-12500.0,0.0004075,120]
[342523112,1731956895928,-12500.0,0.0004075,120]
[342523113,1731956895956,-12500.0,0.0004075,120]
[342523114,1731956895985,-12500.0,0.0004075,120]
[342523115,1731956896020,-12500.0,0.0004075,120]
[342523116,1731956896051,-12500.0,0.0004075,120]
[342523117,1731956896080,-12500.0,0.0004075,120]
[342523118,1731956896113,-9143.98,0.0004075,120]
[342523119,1731956896142,-157.111712,0.00040798,120]
[342523120,1731956896172,-6403.67690028,0.0004081,120]
[342523121,1731956896203,-1626.35686305,0.00040889,120]
[342523122,1731956896234,-157.111712,0.00040898,120]
[342523123,1731956896267,-151.0,0.00040959,120]
[342523124,1731956896298,-10992.21962031,0.00040998,120]
[342523125,1731956896328,-1000.0,0.00040999,120]
[342523126,1731956896361,-50000.0,0.00041,31]
[342523127,1731956896394,-50000.0,0.00041,41]
[342523128,1731956896423,-32963.06383238,0.00041,30]
[342523129,1731956896453,-500.0,0.00041,120]
[342523130,1731956896482,-2900.0,0.00041,120]
[342523131,1731956896517,-10000.0,0.00041,120]
[342523132,1731956896548,-1800.0,0.00041,42]
[342523133,1731956896579,-1526.42734322,0.00041,120]
[342523134,1731956896607,-100325.89947342,0.00041,90]
[342523135,1731956896637,-142170.77844289,0.00041,120]
[342523136,1731956903590,-200248.49933651,0.00041,120]
[342523137,1731956903620,-4100.19218562,0.00041,120]
[342523138,1731956903649,-5130.0,0.00041,120]
[342523139,1731956903679,-534.02,0.00041,120]
[342523140,1731956903711,-500.0,0.00041,120]
[342523141,1731956903740,-500.0,0.00041,120]
[342523142,1731956903774,-500.0,0.00041,120]
[342523143,1731956903805,-500.0,0.00041,120]
[342523144,1731956903836,-500.0,0.00041,120]
[342523145,1731956903865,-500.0,0.00041,120]
[342523146,1731956903896,-500.0,0.00041,120]
[342523147,1731956903926,-500.0,0.00041,120]
[342523148,1731956903956,-500.0,0.00041,120]
[342523149,1731956903985,-500.0,0.00041,120]
[342523150,1731956904016,-500.0,0.00041,120]
[342523151,1731956904047,-500.0,0.00041,120]
[342523152,1731956904076,-500.0,0.00041,120]
[342523153,1731956904108,-500.0,0.00041,120]
[342523154,1731956904143,-500.0,0.00041,120]
[342523155,1731956904172,-500.0,0.00041,120]
[342523156,1731956904202,-500.0,0.00041,120]
[342523157,1731956904232,-500.0,0.00041,120]
[342523158,1731956904267,-500.0,0.00041,120]
[342523159,1731956904636,-713.0,0.00041,120]
[342523160,1731956904670,-500.0,0.00041,120]
[342523161,1731956904699,-500.0,0.00041,120]
[342523162,1731956904727,-500.0,0.00041,120]
[342523163,1731956904755,-500.0,0.00041,120]
[342523164,1731956904791,-500.0,0.00041,120]
[342523165,1731956904827,-500.0,0.00041,120]
[342523166,1731956904857,-500.0,0.00041,120]
[342523167,1731956904887,-500.0,0.00041,120]
[342523168,1731956904919,-500.0,0.00041,120]
[342523169,1731956904951,-500.0,0.00041,120]
[342523170,1731956904982,-500.0,0.00041,120]
[342523171,1731956905017,-500.0,0.00041,120]
[342523172,1731956905048,-500.0,0.00041,120]
[342523173,1731956905078,-500.0,0.00041,120]
[342523174,1731956905110,-500.0,0.00041,120]
[342523175,1731956905141,-500.0,0.00041,120]
[342523176,1731956905171,-500.0,0.00041,120]
[342523177,1731956905204,-500.0,0.00041,120]
[342523178,1731956905234,-500.0,0.00041,120]
[342523179,1731956905266,-500.0,0.00041,120]
[342523180,1731956905297,-500.0,0.00041,120]
[342523181,1731956905327,-500.0,0.00041,120]
[342523182,1731956905358,-500.0,0.00041,120]
[342523183,1731956905389,-500.0,0.00041,120]
[342523184,1731956905419,-500.0,0.00041,120]
[342523185,1731956905448,-500.0,0.00041,120]
[342523186,1731956905477,-500.0,0.00041,120]
[342523187,1731956905507,-500.0,0.00041,120]
[342523188,1731956905546,-500.0,0.00041,120]
[342523189,1731956905576,-500.0,0.00041,120]
[342523190,1731956905606,-500.0,0.00041,120]
[342523191,1731956905634,-500.0,0.00041,120]
[342523192,1731956905663,-500.0,0.00041,120]
[342523193,1731956905693,-500.0,0.00041,120]
[342523194,1731956905725,-500.0,0.00041,120]
[342523195,1731956905753,-500.0,0.00041,120]
[342523196,1731956905788,-500.0,0.00041,120]
[342523197,1731956905819,-500.0,0.00041,120]
[342523198,1731956905849,-500.0,0.00041,120]
[342523199,1731956905878,-500.0,0.00041,120]
[342523200,1731956905909,-500.0,0.00041,120]
[342523201,1731956905941,-500.0,0.00041,120]
[342523202,1731956905971,-500.0,0.00041,120]
[342523203,1731956906000,-500.0,0.00041,120]
[342523204,1731956906036,-500.0,0.00041,120]
[342523205,1731956906067,-500.0,0.00041,120]
[342523206,1731956906098,-500.0,0.00041,120]
[342523207,1731956906128,-500.0,0.00041,120]
[342523208,1731956906160,-500.0,0.00041,120]
[342523209,1731956906191,-500.0,0.00041,120]
[342523210,1731956906222,-500.0,0.00041,120]
[342523211,1731956906255,-500.0,0.00041,120]
[342523212,1731956906291,-500.0,0.00041,120]
[342523213,1731956906322,-500.0,0.00041,120]
[342523214,1731956906353,-500.0,0.00041,120]
[342523215,1731956906384,-500.0,0.00041,120]
[342523216,1731956906421,-500.0,0.00041,120]
[342523217,1731956906451,-500.0,0.00041,120]
[342523218,1731956906481,-500.0,0.00041,120]
[342523219,1731956906516,-500.0,0.00041,120]
[342523220,1731956906547,-500.0,0.00041,120]
[342523221,1731956906578,-500.0,0.00041,120]
[342523222,1731956906608,-500.0,0.00041,120]
[342523223,1731956906638,-500.0,0.00041,120]
[342523224,1731956906668,-500.0,0.00041,120]
[342523225,1731956906698,-564.0,0.00041,120]
[342523226,1731956906731,-33959.14277406,0.00041,60]
[342523227,1731956906764,-70000.0,0.00041,60]
[342523228,1731956906794,-35068.05091243,0.00041,120]
[342523229,1731956906827,-143000.0,0.00041,120]
[342523230,1731956906858,-9308.27407623,0.00041034,30]
[342523231,1731956906888,-131957.53312825,0.00041034,30]
[342523232,1731956906919,-14894.26637026,0.00041034,30]
[342523233,1731956906952,-3123.74858,0.00041088,30]
[342523234,1731956906982,-500.0,0.00041095,120]
[342523235,1731956907020,-500.0,0.00041095,120]
[342523236,1731956907054,-500.0,0.00041095,120]
[342523237,1731956907090,-500.0,0.00041095,120]
[342523238,1731956907122,-500.0,0.00041095,120]
[342523239,1731956907156,-500.0,0.00041095,120]
[342523240,1731956907204,-500.0,0.00041095,120]
[342523241,1731956907241,-500.0,0.00041095,120]
[342523242,1731956907273,-500.0,0.00041095,120]
[342523243,1731956907304,-500.0,0.00041095,120]
[342523244,1731956907336,-500.0,0.00041095,120]
[342523245,1731956907369,-500.0,0.00041095,120]
[342523246,1731956907401,-500.0,0.00041095,120]
[342523247,1731956907432,-500.0,0.00041095,120]
[342523248,1731956907463,-500.0,0.00041095,120]
[342523249,1731956907494,-500.0,0.00041095,120]
[342523250,1731956907531,-500.0,0.00041095,120]
[342523251,1731956907563,-171.53315113,0.00041095,120]
[342523252,1731956907596,-520.49304796,0.00041095,30]
[342523253,1731956907631,-3263.7,0.00041095,120]
[342523254,1731956907662,-3263.7,0.00041095,120]
[342523255,1731956907694,-3263.7,0.00041095,120]
[342523256,1731956907729,-3263.7,0.00041095,120]
[342523257,1731956907763,-3263.7,0.00041095,120]
[342523258,1731956907793,-3263.7,0.00041095,120]
[342523259,1731956907825,-3263.7,0.00041095,120]
[342523260,1731956907857,-3263.7,0.00041095,120]
[342523261,1731956907889,-3263.7,0.00041095,120]
[342523262,1731956908194,-3263.7,0.00041095,120]
[342523263,1731956908225,-3263.7,0.00041095,120]
[342523264,1731956908256,-3263.7,0.00041095,120]
[342523265,1731956908289,-3263.7,0.00041095,120]
[342523266,1731956908322,-3263.7,0.00041095,120]
[342523267,1731956908352,-3263.7,0.00041095,120]
[342523268,1731956908383,-3263.7,0.00041095,120]
[342523269,1731956908415,-3263.7,0.00041095,120]
[342523270,1731956908445,-3263.7,0.00041095,120]
[342523271,1731956908474,-3263.7,0.00041095,120]
[342523272,1731956908505,-3263.7,0.00041095,120]
[342523273,1731956908539,-3263.7,0.00041095,120]
[342523274,1731956908570,-3263.7,0.00041095,120]
[342523275,1731956908603,-3263.7,0.00041095,120]
[342523276,1731956908636,-3263.74516729,0.00041095,120]
[342523277,1731956908666,-500.0,0.00041095,120]
[342523278,1731956908696,-500.0,0.00041095,120]
[342523279,1731956908724,-500.0,0.00041095,120]
[342523280,1731956908754,-500.0,0.00041095,120]
[342523281,1731956908786,-500.0,0.00041095,120]
[342523282,1731956908816,-500.0,0.00041095,120]
[342523283,1731956908846,-500.0,0.00041095,120]
[342523284,1731956908876,-500.0,0.00041095,120]
[342523285,1731956908905,-500.0,0.00041095,120]
[342523286,1731956908933,-500.0,0.00041095,120]
[342523287,1731956908961,-500.0,0.00041095,120]
[342523288,1731956908991,-500.0,0.00041095,120]
[342523289,1731956909023,-500.0,0.00041095,120]
[342523290,1731956909054,-500.0,0.00041095,120]
[342523291,1731956909084,-500.0,0.00041095,120]
[342523292,1731956909117,-500.0,0.00041095,120]
[342523293,1731956909148,-500.0,0.00041095,120]
[342523294,1731956909178,-500.0,0.00041095,120]
[342523295,1731956909208,-572.38377066,0.00041095,120]
[342523296,1731956909239,-5000.0,0.00041095,70]
[342523297,1731956909344,500.0,0.000405,120]
[342523298,1731956909475,500.0,0.00040598,120]
[342523299,1731956909613,151.0,0.00041,30]
[342523300,1731956909666,500.0,0.00040698,120]
[342523301,1731956909773,500.0,0.00040746,60]
[342523302,1731956909868,500.0,0.0004075,120]
[342523303,1731956910119,500.0,0.00040798,120]
[342523304,1731956910222,500.0,0.0004081,120]
[342523305,1731956910337,500.0,0.00040889,120]
[342523306,1731956910416,500.0,0.00040898,120]
[342523307,1731956910793,500.0,0.00040959,120]
[342523308,1731956910836,500.0,0.00040998,120]
[342523309,1731956911793,500.0,0.00040999,120]
[342523310,1731956911914,500.0,0.00041,31]
[342523311,1731956912002,500.0,0.00041034,30]
[342523312,1731956912045,500.0,0.00040598,120]
[342523313,1731956912119,500.0,0.00041088,30]
[342523314,1731956912198,500.0,0.00041,30]
[342523315,1731956912287,500.0,0.00041095,120]
[342523316,1731956912322,500.0,0.00040898,120]
[342523317,1731956912405,500.0,0.00040959,120]
[342523318,1731956912441,150.0,0.00037266,120]
[342523319,1731956912475,500.0,0.00040959,120]
[342523320,1731956912547,500.0,0.00040998,120]
[342523321,1731956912600,500.0,0.00040998,120]
[342523322,1731956912706,150.0,0.00040999,120]
[342523323,1731956912741,500.0,0.00040999,120]
[342523324,1731956912796,150.0,0.000409,31]
[342523325,1731956912849,500.0,0.00040999,120]
[342523326,1731956912942,500.0,0.00041,31]
[342523327,1731956913036,150.0,0.00040934,30]
[342523328,1731956913111,500.0,0.00041,31]
[342523329,1731956913455,500.0,0.00041034,30]
[342523330,1731956913617,150.0,0.00041034,30]
[342523331,1731956913858,500.0,0.00041088,30]
[342523332,1731956913999,500.0,0.00041088,30]
[342523333,1731956914038,150.0,0.00040988,30]
[342523334,1731956914091,150.0,0.00041088,30]
[342523335,1731956914265,500.0,0.00041095,120]
[342523336,1731956914401,500.0,0.00041095,120]
[342523337,1731956914446,150.0,0.000409,30]
[342523338,1731956914564,150.0,0.00041095,120]
[342523339,1731956914805,150.0,0.00040995,120]
[342523340,1731956914870,150.0,0.00041095,120]
[342523341,1731956915061,158.491,0.00041095,30]
[342523342,1731956915233,150.0,0.00040898,120]
[342523343,1731956915326,150.0,0.00041095,30]
[342523344,1731956915758,150.0,0.00040898,120]
[342523345,1731956916363,150.0,0.00040898,120]
[342523346,1731956916913,150.0,0.00040899,120]
[342523347,1731956917587,150.0,0.00040899,120]
[342523348,1731956917841,150.0,0.000408,31]
[342523349,1731956917916,150.0,0.00040899,120]
[342523350,1731956918159,150.0,0.00040899,120]
[342523351,1731956918200,150.0,0.00040899,120]
[342523352,1731956918560,150.0,0.000409,31]
[342523353,1731956918996,150.0,0.00040834,30]
[342523354,1731956919420,150.0,0.000409,31]
[342523435,1731957031770,-382.72,9.04e-05,2]
[342523436,1731957031780,-1000.0,9.04e-05,2]
[342523437,1731957031790,-3609.342992,9.726e-05,2]
[342523438,1731957031801,-4821.3468,9.776e-05,2]
[342523439,1731957031811,-1000.0,9.776e-05,2]
[342523440,1731957031820,-2500.0,9.776e-05,2]
[342523441,1731957031830,-668.18916766,9.776e-05,2]
[342523442,1731957031851,-158.27343234,9.776e-05,2]
[342523443,1731957031861,-500.0,9.853e-05,2]
[342523444,1731957031871,-500.0,9.853e-05,2]
[342523445,1731957031880,-500.0,9.853e-05,2]
[342523446,1731957031889,-150.0,9.862e-05,2]
[342523447,1731957031898,-500.0,9.863e-05,2]
[342523448,1731957031907,-500.0,9.863e-05,2]
[342523449,1731957031917,-500.0,9.863e-05,2]
[342523450,1731957031926,-500.0,9.863e-05,2]
[342523451,1731957031937,-513.35602237,9.863e-05,2]
[342523452,1731957031949,-500.0,9.863e-05,2]
[342523453,1731957031959,-500.0,9.863e-05,2]
[342523454,1731957031970,-500.0,9.863e-05,2]
[342523455,1731957031980,-500.0,9.863e-05,2]
[342523456,1731957031990,-500.0,9.863e-05,2]
[342523457,1731957031999,-500.0,9.863e-05,2]
[342523458,1731957032009,-500.0,9.863e-05,2]
[342523459,1731957032019,-500.82953561,9.863e-05,2]
[342523460,1731957032028,-500.0,9.863e-05,2]
[342523461,1731957032037,-1000.0,9.87e-05,2]
[342523462,1731957032047,-1000.0,9.87e-05,2]
[342523463,1731957032060,-1002.0,9.87e-05,2]
[342523464,1731957032070,-500.0,9.875e-05,2]
[342523465,1731957032079,-500.0,9.875e-05,2]
[342523466,1731957032089,-500.0,9.875e-05,2]
[342523467,1731957032099,-500.0,9.875e-05,2]
[342523468,1731957032109,-1227.58,9.875e-05,2]
[342523469,1731957032118,-1227.58,9.875e-05,2]
[342523470,1731957032129,-500.0,9.875e-05,2]
[342523471,1731957032139,-500.0,9.875e-05,2]
[342523472,1731957032149,-500.0,9.875e-05,2]
[342523473,1731957032159,-500.0,9.875e-05,2]
[342523474,1731957032169,-500.0,9.875e-05,2]
[342523475,1731957032179,-500.0,9.875e-05,2]
[342523476,1731957032191,-500.0,9.875e-05,2]
[342523477,1731957032200,-500.0,9.875e-05,2]
[342523478,1731957032211,-500.0,9.875e-05,2]
[342523479,1731957032221,-500.0,9.875e-05,2]
[342523480,1731957032231,-500.0,9.875e-05,2]
[342523481,1731957032241,-500.0,9.875e-05,2]
[342523482,1731957032251,-500.0,9.875e-05,2]
[342523483,1731957032261,-500.0,9.875e-05,2]
[342523484,1731957032270,-500.0,9.875e-05,2]
[342523485,1731957032280,-500.0,9.875e-05,2]
[342523486,1731957032289,-6293.99,9.875e-05,2]
[342523487,1731957032298,-6293.99,9.875e-05,2]
[342523488,1731957032308,-500.0,9.875e-05,2]
[342523489,1731957032317,-500.0,9.875e-05,2]
[342523490,1731957032327,-500.0,9.875e-05,2]
[342523491,1731957032336,-500.0,9.875e-05,2]
[342523492,1731957032346,-633.73,9.875e-05,2]
[342523493,1731957032356,-633.73,9.875e-05,2]
[342523494,1731957032366,-500.0,9.875e-05,2]
[342523495,1731957032375,-500.0,9.875e-05,2]
[342523496,1731957032384,-2026.96,9.875e-05,2]
[342523497,1731957032394,-2026.96,9.875e-05,2]
[342523498,1731957032404,-1029.32,9.875e-05,2]
[342523499,1731957032413,-1029.32,9.875e-05,2]
[342523500,1731957032423,-2595.6058,9.876e-05,2]
[342523501,1731957032432,-336908.40024428,9.876e-05,2]
[342523502,1731957032449,-14473.36220957,9.876e-05,2]
[342523503,1731957032462,-5200.77,9.876e-05,2]
[342523504,1731957032486,-800.94,9.876e-05,2]
[342523505,1731957032499,-13654.84810986,9.876e-05,2]
[342523506,1731957032511,-2229.84127666,9.876e-05,2]
[342523507,1731957032522,-903.2,9.876e-05,2]
[342523508,1731957033293,-3200.0,9.876e-05,2]
[342523888,1731957037764,-452.33,9.875e-05,2]